Cogmind - Beta 9 @@@ ROGUE MODE // 2019.10.27 @ 14:33:16 Player: ModulinMyGlobulin Result: Self-destructed Performance ------------- Evolutions (2) 1000 Regions Visited (3) 600 Robots Destroyed (13) 65 Value Destroyed (325) 325 Prototype IDs (1) 20 Alien Tech Used (0) 0 Bonus (0) 0 TOTAL SCORE: 2010 Bonus ------- None Cogmind --------- Core Integrity 420/550 Matter 145/300 Energy 100/100 System Corruption 1% Temperature Cool (0) Location -8/Materials Parts ------- Power (1) Propulsion (4) Carbon-fiber Leg Utility (4) Heat Sink Small Storage Unit Medium Storage Unit System Shield Weapon (2) EM Shotgun Inventory (10) Cooled Ion Engine Cooled Ion Engine Large Storage Unit Large Storage Unit EM Shotgun Beam Rifle Spread Laser High-powered Shotgun Grenade Launcher Peak State ------------ Power Cooled Ion Engine Propulsion Light Treads Compact Wheel Utility Heat Sink Small Storage Unit Medium Storage Unit System Shield Weapon EM Shotgun Assault Rifle Inventory Cooled Ion Engine Large Storage Unit Large Storage Unit EM Shotgun Beam Rifle Spread Laser High-powered Shotgun Grenade Launcher [Rating: 15] Favorites ----------- Power Cooled Ion Engine Engine Cooled Ion Engine Propulsion Aluminum Leg Treads Light Treads Leg Aluminum Leg Wheel Compact Wheel Utility Small Storage Unit Device Tractor Beam Storage Small Storage Unit Hackware System Shield Weapon Assault Rifle Energy Gun EM Shotgun Ballistic Gun Assault Rifle Build | -11 -10 -9 -8 ------- Run | Scr Mat Mat Mat Slots Evolved 4 | . . 2 2 Power . | . . . . Propulsion 2 | . . 1 1 Utility 2 | . . 1 1 Weapon . | . . . . Parts Attached 15 | 1 . 7 7 Power 3 | . . 2 1 Engine 3 | . . 2 1 Core . | . . . . Reactor . | . . . . Propulsion 5 | . . 2 3 Treads 2 | . . 2 . Leg 1 | . . . 1 Wheel 2 | . . . 2 Hover . | . . . . Flight . | . . . . Utility 4 | 1 . 1 2 Device 2 | 1 . . 1 Storage 1 | . . 1 . Processor . | . . . . Hackware 1 | . . . 1 Protection . | . . . . Artifact . | . . . . Weapon 3 | . . 2 1 Energy Gun 1 | . . . 1 Energy Cannon . | . . . . Ballistic Gun 2 | . . 2 . Ballistic Cannon . | . . . . Launcher . | . . . . Special Weapon . | . . . . Impact Weapon . | . . . . Slashing Weapon . | . . . . Piercing Weapon . | . . . . Special Melee Weapon . | . . . . Unidentified Prototypes 1 | . . 1 . Parts Lost 9 | . . . 9 Power 1 | . . . 1 Propulsion 5 | . . . 5 Utility 1 | . . . 1 Weapon 2 | . . . 2 Highest Loss Streak 3 | . . . 3 Average Slot Usage (%) 85 | . 100 90 73 Engine 10 | . 14 11 6 Treads 6 | . . 7 9 Leg 17 | . 28 22 7 Wheel 2 | . . . 5 Device 10 | . 14 11 7 Storage 16 | . 14 16 18 Hackware 1 | . . . 3 Energy Gun 1 | . . . 5 Ballistic Gun 18 | . 28 22 10 Naked Turns . | . . . . Heaviest Build 26 | 14 14 25 26 Greatest Support 20 | 20 20 20 20 Greatest Overweight (x) 5 | . . 1 5 Average Overweight (x) . | . . . . Largest Inventory Capacity 10 | 6 6 10 10 Average Capacity 8 | 6 6 8 10 Most Carried 10 | 6 6 9 10 Average Carried 7 | 6 5 7 8 Final Capacity 10 | . . . 10 Final Carried 9 | . . . 9 Class Distribution -------------------- 100% | Mutant Dominant Class ---------------- Mutant | -10/Materials Mutant | -9/Materials Mutant | -8/Materials Resources | -11 -10 -9 -8 ----------- Run | Scr Mat Mat Mat Matter Collected 478 | 270 42 28 138 Remotely . | . . . . Salvage Created 484 | 93 47 97 247 Parts 26 | 2 6 6 12 Haulers Intercepted . | . . . . Recyclers Shooed . | . . . . Parts Field Recycled . | . . . . Retrieved Matter . | . . . . Parts Self-Destructed . | . . . . Prevented . | . . . . Kills | -11 -10 -9 -8 ------- Run | Scr Mat Mat Mat Combat Hostiles Destroyed 11 | . 3 4 4 Guns 11 | . 3 4 4 Classes Destroyed 5 | 1 1 1 2 Recycler 1 | 1 . . . Operator 1 | . . . 1 Swarmer 6 | . 3 3 . Sentry 4 | . . 1 3 Hunter 1 | . . . 1 Best Kill Streak 3 | 1 3 2 1 Combat Bots Only 3 | . 3 2 1 Max Kills in Single Turn 1 | 1 1 1 1 Gunslinging . | . . . . Exploded . | . . . . Melee . | . . . . Uniques/NPCs Destroyed . | . . . . Combat | -11 -10 -9 -8 -------- Run | Scr Mat Mat Mat Damage Taken 1084 | . 141 192 751 Core 176 | . 17 29 130 Absorbed by Shields . | . . . . Core Remaining (%) 95 | 100 93 92 . Volleys Fired 65 | 10 7 17 31 Largest 2 | 2 2 2 2 Hottest 65 | 40 40 40 65 Shots Fired 122 | 20 14 34 54 Gun 122 | 20 14 34 54 Cannon . | . . . . Launcher . | . . . . Special . | . . . . Kinetic 112 | 20 14 34 44 Thermal . | . . . . Explosive . | . . . . Electromagnetic 10 | . . . 10 Robot Hit Streak 14 | 2 2 5 14 Robot Miss Streak 5 | 3 4 5 3 Penetration Max . | . . . . Secondary Targets 1 | . . 1 . Max Gunslinging Chain 1 | . . 1 . Shots Hit Robots 69 | 9 4 18 38 Core Hits 22 | 2 3 5 12 Critical Hits . | . . . . Critical Kills . | . . . . Critical Parts Destroyed . | . . . . Melee Attacks . | . . . . Impact . | . . . . Slashing . | . . . . Piercing . | . . . . Sneak Attacks . | . . . . Combat Hostiles . | . . . . Follow-up Attacks . | . . . . Damage Inflicted 925 | 124 48 199 554 Guns 857 | 124 48 199 486 Cannons . | . . . . Explosions 63 | . . . 63 Melee . | . . . . Ramming 5 | . . . 5 Kinetic 726 | 124 48 199 355 Thermal 63 | . . . 63 Explosive . | . . . . Electromagnetic 131 | . . . 131 Impact . | . . . . Slashing . | . . . . Piercing . | . . . . Highest Corruption 1 | . . . 1 Average Corruption 1 | . . . 1 Corruption Purged . | . . . . Effects 1 | . . . 1 Message Errors 1 | . . . 1 Overload Shots . | . . . . Overflow Damage 17 | . . . 17 Projectiles . | . . . . Explosions 17 | . . . 17 Melee . | . . . . Knockbacks . | . . . . Impact . | . . . . Kinetic . | . . . . Secondary . | . . . . Self-Inflicted Damage 43 | . . . 43 Shots 1 | . . . 1 Rammed 2 | . . . 2 Targets Rammed 2 | . . . 2 Kicked . | . . . . Crushed . | . . . . Highest Temperature 2 | . . . 2 Average Temperature 2 | . . . 2 Received Heat Transfer 150 | . . 24 126 Siege Activations . | . . . . Robots Corrupted . | . . . . Combat Hostiles . | . . . . Parts Fried 2 | . . . 2 Impact Corruptions . | . . . . Robots Melted . | . . . . Combat Hostiles . | . . . . Parts Melted . | . . . . Heat Transferred 50 | . . . 50 Parts Sabotaged . | . . . . Parts Stolen . | . . . . Parts Stripped . | . . . . Power Chain Reactions 1 | . . . 1 Missiles Intercepted . | . . . . Alert | -11 -10 -9 -8 ------- Run | Scr Mat Mat Mat Peak Influence 192 | 5 73 192 166 Average Influence 90 | . 45 97 122 Maximum Alert Level . | . . . . Low Security (%) 100 | . . . . Level 1 . | . . . . Level 2 . | . . . . Level 3 . | . . . . Level 4 . | . . . . Level 5 . | . . . . High Security . | . . . . Max Security . | . . . . Squads Dispatched 5 | . . 1 4 Investigation . | . . . . Extermination . | . . . . Reinforcement 2 | . . 1 1 Assault . | . . . . Garrison 3 | . . . 3 Intercept . | . . . . Construction Impeded . | . . . . Haulers Reinforced . | . . . . Stealth | -11 -10 -9 -8 --------- Run | Scr Mat Mat Mat Distress Signals 3 | . . 2 1 Communications Jammed . | . . . . Distress Signals . | . . . . Times Spotted 30 | . 5 12 13 Peak Tracking Total 5 | . 4 4 5 Tactical Retreats 1 | . 1 . . Traps | -11 -10 -9 -8 ------- Run | Scr Mat Mat Mat Traps Triggered 4 | . 1 2 1 Indirectly . | . . . . Trap Hack Attempts . | . . . . Triggered . | . . . . Disarmed . | . . . . Reprogrammed . | . . . . Reused . | . . . . Traps Extracted . | . . . . Installed . | . . . . Triggered . | . . . . Machines | -11 -10 -9 -8 ---------- Run | Scr Mat Mat Mat Machines Disabled . | . . . . Max in Single Turn . | . . . . Machines Sabotaged . | . . . . Garrisons Compromised . | . . . . Overloaded Fab Kills . | . . . . Fab Network Shutdowns . | . . . . Hacking | -11 -10 -9 -8 --------- Run | Scr Mat Mat Mat Machines Accessed 5 | . 1 2 2 Terminals 4 | . 1 2 1 Fabricators . | . . . . Repair Stations . | . . . . Recycling Units . | . . . . Scanalyzers . | . . . . Garrison Access 1 | . . . 1 Total Hacks 10 | . 1 5 4 Successful 7 | . . 5 2 Failed 3 | . 1 . 2 Catastrophic 1 | . 1 . . Database Lockouts . | . . . . Manual 7 | . 1 5 1 Terminals 8 | . 1 5 2 Fabricators . | . . . . Repair Stations . | . . . . Recycling Units . | . . . . Scanalyzers . | . . . . Garrison Access 2 | . . . 2 Terminal Hacks 5 | . . 4 1 Level Access Points 1 | . . 1 . Branch Access Points 1 | . . 1 . Alert Level 1 | . . . 1 Dispatch Records 1 | . . 1 . Recall Reinforcements 1 | . . 1 . Fabricator Hacks . | . . . . Repair Station Hacks . | . . . . Recycling Unit Hacks . | . . . . Scanalyzer . | . . . . Garrison Access Hacks 1 | . . . 1 Coupler Status 1 | . . . 1 Unauthorized Hacks 3 | . . 2 1 Terminals 1 | . . 1 . Botnet 1 | . . 1 . Fabricators . | . . . . Repair Stations . | . . . . Recycling Units . | . . . . Scanalyzers . | . . . . Garrison Access . | . . . . Data Cores Recovered . | . . . . Used . | . . . . Hacking Detections 3 | . . 1 2 Full Trace Events . | . . . . Feedback Events . | . . . . Feedback Blocked . | . . . . Robot Schematics Acquired . | . . . . Robots Built . | . . . . Matter . | . . . . Time . | . . . . Total Robot Build Rating . | . . . . Part Schematics Acquired . | . . . . Parts Built . | . . . . Matter . | . . . . Time . | . . . . Total Part Build Rating . | . . . . Parts Repaired . | . . . . Time . | . . . . Parts Recycled . | . . . . Recycled Matter . | . . . . Retrieved Matter . | . . . . Retrieved Components . | . . . . Parts Scanalyzed . | . . . . Part Schematics Acquired . | . . . . Parts Damaged . | . . . . Bothacking | -11 -10 -9 -8 ------------ Run | Scr Mat Mat Mat Used RIF Installer . | . . . . Robots Hacked . | . . . . Non-combat . | . . . . Combat . | . . . . Robot Hacks Applied . | . . . . Relay Couplers Released . | . . . . Robots Rewired . | . . . . Allies Hacked . | . . . . Hacks Repelled . | . . . . Allies | -11 -10 -9 -8 -------- Run | Scr Mat Mat Mat Total Allies . | . . . . Largest Group . | . . . . Highest-Rated Group . | . . . . Highest-Rated Ally . | . . . . Total Orders . | . . . . Ally Attacks . | . . . . Total Damage . | . . . . Kills . | . . . . Allies Corrupted . | . . . . Allies Melted . | . . . . Intel | -11 -10 -9 -8 ------- Run | Scr Mat Mat Mat Robot Analysis Total . | . . . . Derelict Logs Recovered . | . . . . Drone Launches . | . . . . Drone Recoveries . | . . . . Exploration | -11 -10 -9 -8 ------------- Run | Scr Mat Mat Mat Turns Passed 875 | 58 164 346 307 Spaces Moved 483 | 23 111 202 147 Core 3 | . . . 3 Treads 34 | . . . 34 Legs 381 | 23 111 202 45 Wheels 65 | . . . 65 Hover . | . . . . Flight . | . . . . Fastest Speed 110 | 120 120 120 110 Average Speed 131 | 120 120 133 139 Slowest Speed 300 | 120 120 150 300 Overloaded Moves . | . . . . Propulsion Burnouts . | . . . . Robots Hopped . | . . . . Cave-ins Triggered . | . . . . Exploration Rate (%) 20 | 4 29 27 20 Regions Visited 3 Branch Regions . Pre-discovered Areas . | . . . . Known Exits Taken 1 | . . 1 . Unknown Exits Taken 2 | 1 1 . . Scrap Searched . | . . . . Spaces Dug . | . . . . Terrain Destroyed 5 | . . . 5 Melee . | . . . . Projectile . | . . . . AOE 5 | . . . 5 Actions | -11 -10 -9 -8 --------- Run | Scr Mat Mat Mat Total 598 | 33 128 244 193 Wait 22 | . 9 9 4 Move 480 | 22 110 201 147 Hop . | . . . . Pick Up 9 | . 1 6 2 Fast Attach 9 | 1 . 5 3 Attach 4 | . . 1 3 Detach . | . . . . Swap 2 | . . 1 1 Drop 5 | . 1 4 . Fire 65 | 10 7 17 31 Melee . | . . . . Ram 2 | . . . 2 Kick . | . . . . Crush . | . . . . Escape Stasis . | . . . . Rewire . | . . . . Trap . | . . . . Miscellaneous . | . . . . Route ------- -11/Scrapyard -10/Materials -9/Materials (discovered 6 exits: *Mat x3 / Min / *Sto x2) -8/Materials History --------- Turn | Location | Event 1 | -11/Scrapyard | Discovered new exit (range 3) 59 | -11/Scrapyard | Entered Materials 187 | -10/Materials | Discovered new exit (range 14) 223 | -10/Materials | Entered another Materials area 223 | -9/Materials | Evolved 2 slots: Propulsion x1, Utility x1 226 | -9/Materials | Discovered new exit (range 11) 306 | -9/Materials | Identified exit to Materials 306 | -9/Materials | Identified exit to Mines 306 | -9/Materials | Identified exit to Storage 351 | -9/Materials | Build established: Mutant 569 | -9/Materials | Entered another Materials area 569 | -8/Materials | Evolved 2 slots: Propulsion x1, Utility x1 719 | -8/Materials | Lost 3 parts (2n1w) 839 | -8/Materials | Lost 3 parts (1p1n1w) 876 | -8/Materials | Self-destructed Last Messages --------------- 00808_ Penetrated by Slug. 00808_ Com. Wheel destroyed. 00809_ U-05 Engineer builds a Door. 00810_ Targeting Computer fried. 00810_ H-55 Commando destroyed. 00812_ U-05 Engineer lays Concrete. 00815_ Acquired Carbon-fiber Leg. 00815_ U-05 Engineer builds a Wall. 00816_ U-05 Engineer lays Concrete. 00816_ Acquired 54 matter. 00817_ U-05 Engineer lays Concrete. 00817_ U-05 Engineer builds a Wall. 00818_ U-05 Engineer lays Concrete. 00821_ U-05 Engineer builds a Wall. 00822_ U-05 Engineer lays Concrete. 00856_ K-01 Serf collects debris. 00862_ W-25 Informer sends out distress signal. 00864_ K-01 Serf collects debris. 00866_ Door malfunctions. 00873_ Lgt. Treads destroyed. Map ----- +----------------------------------------------------+ | ???????????????????# #####+##### ## | | ???????????????????# + | | ???????????????????# ##### | | ??????????????????## #????? | | ????????????????+ #??????########## | | ??????????????????##+######## #???????????????? | | ???????????????????# # #####???????????? | | ???????????????????# """"" + +??????? | | ???????????????????# """"" # #?????????? | | ??????????????????## """"" # #?????????? | | ??????????????????## + #?????????? | | ???????????######### """ ########## #?????????? | | ???????????# # """ #??????????#?????????? | | ???????????# " # """ #????????????????????? | | ???????????# "" " #????????????????????? | | ???????????# ! "" #+##+########?????????????????? | | ???????????# """ # #?????????????????? | | ???????????# "" + #?????????????????? | | ???????????# """ # #?????????????????? | | ???????????# """ ####### #?????????????????? | | ???????????# """ #?????# #?????????????????? | | ???????????# " #?????# #?????????????????? | | ???????????# #?????# ######????????????? | | ???????????############### # #??????????? | | ???????????????# # s ???????? | | ???????????????# @ ???????? | | ???????????????# # s ???????? | | ???????????????# # """ """ #????????? | | ???????????????#########?# s""" """ #????????? | | ?????????????????????????# """ """?? ??????????? | | ?????????????????????????# ?????????????? | | ?????????????????????????# ?????????????? | | ?????????????????????????# ? ????????????? | | ?????????????????????????? ?? ????????????? | | ?????????????????????????? ????????????????? | | ?????????????????????????? !!???????????????? | | ?????????????????????????? !????????????????? | | ?????????????????????????? !????????????????? | | ?????????????????????????? ?#????????????????? | | ?????????????????????????? ????????????????????? | | ?????????????????????????????????????????????????? | | ?????????????????????????????????????????????????? | | ?????????????????????????????????????????????????? | | ?????????????????????????????????????????????????? | | ?????????????????????????????????????????????????? | | ?????????????????????????????????????????????????? | | ?????????????????????????????????????????????????? | | ?????????????????????????????????????????????????? | | ?????????????????????????????????????????????????? | | ?????????????????????????????????????????????????? | +----------------------------------------------------+ Best States ------------- Heat Dissipation 31 Energy Generation 14 Energy Capacity 280 Matter Stores 300 Matter Capacity 300 Sight Range 16 Terrain Scan Density 10 Evasion (%) 40 Recoil Reduction 1 Defensive Hacking 10 Item Schematics ----------------- None Robot Schematics ------------------ None Fabricated ------------ Nothing Alien Tech Used ----------------- None Achievements -------------- None Challenges ------------ None Game ------ Seed GammaModifiedBooster Manual? 0 Play Time 00:12:00 Cumulative 44.9 hours Start 2019.10.27 @ 14:18:54 End 2019.10.27 @ 14:33:16 Sessions 1 Manual Loads 0 Difficulty Rogue Special Mode None Game No. 120 Rogue 120 Adventurer 0 Explorer 0 Win Type - Total 0 Types 0/0/0/0/0/0/0 Lore% 34 Gallery% 38 Achievement% 21 Wizard Run 0 Options --------- ASCII 0 Keyboard 0 Movement Numpad Keybinds 0 Fullscreen 1 Font 18/SmallcapsGlow Map View 76x50 Tactical HUD 1 Map Filters NONE Filters NONE Steam 1 RUN: 2a3288b1-fea7-4a39-af74-a0f3d1fa8eb0